fUSD/lending_fUSD_20250623
["ID","MTS","AMOUNT","RATE_DAILY","PERIOD"]
[367199269,1750698670559,-490.0,0.00023543,2]
[367199270,1750698670570,-1850.56,0.00023543,2]
[367199271,1750698670581,-490.0,0.00023543,2]
[367199272,1750698670593,-851.87,0.00023543,2]
[367199273,1750698670604,-775.66,0.00023543,2]
[367199274,1750698670614,-508.01,0.00023543,2]
[367199275,1750698670623,-490.0,0.00023543,2]
[367199276,1750698670633,-490.0,0.00023543,2]
[367199277,1750698670643,-696.43,0.00023543,2]
[367199278,1750698670653,-490.0,0.00023543,2]
[367199279,1750698670662,-516.92341771,0.00023543,2]
[367199280,1750698670670,-503.51,0.00023543,2]
[367199281,1750698670680,-341.89701269,0.00023543,2]
[367199282,1750698670690,-759.75,0.00023543,2]
[367199283,1750698670700,-719.21,0.00023543,2]
[367199284,1750698670709,-550.96,0.00023543,2]
[367199285,1750698670720,-490.0,0.00023543,2]
[367199286,1750698670729,-1736.88,0.00023543,2]
[367199287,1750698670738,-1417.97,0.00023543,2]
[367199288,1750698670747,-490.0,0.00023543,2]
[367199289,1750698670757,-666.0,0.00023543,2]
[367199290,1750698670766,-666.0,0.00023543,2]
[367199291,1750698670776,-666.0,0.00023544,2]
[367199292,1750698670785,-666.0,0.00023544,2]
[367199293,1750698670795,-490.0,0.00023544,2]
[367199294,1750698670805,-1272.27,0.00023544,2]
[367199295,1750698670815,-490.0,0.00023544,2]
[367199296,1750698670824,-490.0,0.00023544,2]
[367199297,1750698670838,-490.0,0.00023544,2]
[367199298,1750698670847,-688.42,0.00023544,2]
[367199299,1750698670857,-490.0,0.00023544,2]
[367199300,1750698670866,-490.0,0.00023544,2]
[367199301,1750698670875,-490.0,0.00023544,2]
[367199302,1750698670884,-619.84,0.00023544,2]
[367199303,1750698670893,-490.0,0.00023544,2]
[367199304,1750698670902,-490.0,0.00023544,2]
[367199305,1750698670913,-490.0,0.00023544,2]
[367199306,1750698670923,-815.99,0.00023544,2]
[367199307,1750698670933,-490.0,0.00023544,2]
[367199308,1750698670943,-490.0,0.00023544,2]
[367199309,1750698670953,-500.0,0.00023544,2]
[367199310,1750698670962,-490.0,0.00023544,2]
[367199311,1750698670973,-490.0,0.00023544,2]
[367199312,1750698670983,-490.0,0.00023544,2]
[367199313,1750698670993,-490.0,0.00023544,2]
[367199314,1750698671005,-490.0,0.00023544,2]
[367199315,1750698671015,-490.0,0.00023544,2]
[367199316,1750698671025,-490.0,0.00023544,2]
[367199317,1750698671036,-491.68,0.00023544,2]
[367199318,1750698671046,-490.0,0.00023544,2]
[367199319,1750698671057,-490.0,0.00023544,2]
[367199320,1750698671067,-490.0,0.00023544,2]
[367199321,1750698671080,-490.0,0.00023544,2]
[367199322,1750698671102,-490.0,0.00023544,2]
[367199323,1750698671112,-982.4,0.00023544,2]
[367199324,1750698671123,-490.0,0.00023544,2]
[367199325,1750698671133,-683.19,0.00023544,2]
[367199326,1750698671143,-292.30368363,0.00023544,2]
[367199327,1750698671155,-490.0,0.00023544,2]
[367199328,1750698671165,-490.0,0.00023544,2]
[367199329,1750698671175,-1734.24,0.00023544,2]
[367199330,1750698671185,-2397.5,0.00023544,2]
[367199331,1750698671195,-665.68,0.00023544,2]
[367199332,1750698671206,-1068.53,0.00023544,2]
[367199333,1750698671216,-963.54,0.00023544,2]
[367199334,1750698671227,-490.0,0.00023544,2]
[367199335,1750698671238,-1365.65,0.00023544,2]
[367199336,1750698671249,-1251.07,0.00023544,2]
[367199337,1750698671260,-1403.96,0.00023544,2]
[367199338,1750698671271,-851.44,0.00023544,2]
[367199339,1750698671282,-500.0,0.00023544,2]
[367199340,1750698671293,-537.5,0.00023544,2]
[367199341,1750698671303,-500.0,0.00023544,2]
[367199342,1750698671314,-500.0,0.00023544,2]
[367199343,1750698671323,-608.03,0.00023544,2]
[367199344,1750698671340,-608.03,0.00023544,2]
[367199345,1750698671350,-1608.07,0.00023544,2]
[367199346,1750698671360,-500.0,0.00023544,2]
[367199347,1750698671371,-1435.25,0.00023544,2]
[367199348,1750698671381,-500.0,0.00023544,2]
[367199349,1750698671391,-329.88171833,0.00023545,2]
[367199350,1750698671401,-220.71,0.00023545,2]
[367199351,1750698671410,-500.0,0.00023545,2]
[367199352,1750698671420,-240.84,0.00023545,2]
[367199353,1750698671430,-500.0,0.00023545,2]
[367199354,1750698671440,-1608.07,0.00023545,2]
[367199355,1750698671449,-444.96710102,0.00023545,2]
[367199356,1750698671459,-1435.25,0.00023545,2]
[367199357,1750698671469,-500.0,0.00023545,2]
[367199358,1750698671479,-150.0,0.00023572,2]
[367199359,1750698671489,-164.52280448,0.00023573,2]
[367199360,1750698671499,-501.24948313,0.00023573,2]
[367199361,1750698671508,-500.0,0.00023573,2]
[367199362,1750698671518,-500.0,0.00023573,2]
[367199363,1750698671528,-150.0,0.00023598,2]
[367199364,1750698671538,-1860.0,0.000236,2]
[367199365,1750698671548,-1230.431345,0.00023612,4]
[367199366,1750698671558,-151.0,0.00023617,2]
[367199367,1750698671568,-285.32504675,0.00023623,2]
[367199368,1750698671578,-150.0,0.00023624,2]
[367199369,1750698671595,-20818.85430247,0.00023626,2]
[367199370,1750698671605,-150.0,0.00023635,2]
[367199371,1750698671614,-150.0,0.00023641,2]
[367199372,1750698671625,-150.0,0.00023656,2]
[367199373,1750698671635,-500.0,0.00023657,2]
[367199374,1750698671645,-500.0,0.00023657,2]
[367199375,1750698671655,-1608.07,0.00023657,2]
[367199376,1750698671666,-1435.25,0.00023657,2]
[367199377,1750698671676,-500.0,0.00023657,2]
[367199378,1750698671686,-150.0,0.00023659,2]
[367199379,1750698671696,-150.0,0.00023667,2]
[367199380,1750698671706,-150.0,0.00023667,2]
[367199381,1750698671716,-150.0,0.0002367,2]
[367199382,1750698671727,-200.0,0.00023692,2]
[367199383,1750698671737,-150.0,0.0002371,2]
[367199384,1750698671747,-608.03,0.00023717,2]
[367199385,1750698671758,-20818.85430247,0.00023717,2]
[367199386,1750698671767,-150.0,0.00023718,2]
[367199387,1750698671777,-529.02206399,0.00023728,9]
[367199388,1750698671788,-158.19069472,0.00023741,2]
[367199389,1750698671799,-150.0,0.0002375,2]
[367199390,1750698671809,-168.0,0.0002375,2]
[367199391,1750698671820,-150.0,0.00023758,2]
[367199392,1750698671837,-280.72924,0.0002377,2]
[367199393,1750698671848,-150.0,0.00023781,2]
[367199394,1750698671858,-150.0,0.00023782,2]
[367199395,1750698671868,-6574.4673119,0.00023783,2]
[367199396,1750698671878,-1333.0,0.00023783,2]
[367199397,1750698671888,-150.0,0.00023786,2]
[367199398,1750698671898,-150.0,0.00023793,2]
[367199399,1750698671909,-300.0,0.00023798,2]
[367199400,1750698671919,-150.0,0.00023798,2]
[367199401,1750698671930,-41380.6921386,0.00023799,2]
[367199402,1750698671940,-1551.750166,0.00023799,2]
[367199403,1750698671950,-256842.4955891,0.00023799,2]
[367199404,1750698671960,-1500.0,0.000238,8]
[367199405,1750698671970,-666.82455653,0.00023807,2]
[367199406,1750698671980,-728.95,0.0002381,2]
[367199407,1750698671991,-490.0,0.0002381,2]
[367199408,1750698672000,-490.0,0.0002381,2]
[367199409,1750698672009,-1326.54,0.0002381,2]
[367199410,1750698672018,-558.39,0.0002381,2]
[367199411,1750698672028,-1102.83,0.0002381,2]
[367199412,1750698672037,-168.14218651,0.00023811,2]
[367199413,1750698672046,-150.0,0.00023812,2]
[367199414,1750698672056,-490.0,0.00023814,2]
[367199415,1750698672066,-490.0,0.00023814,2]
[367199416,1750698672080,-490.0,0.00023814,2]
[367199417,1750698672095,-490.0,0.00023814,2]
[367199418,1750698672104,-519.65,0.00023814,2]
[367199419,1750698672114,-490.0,0.00023815,2]
[367199420,1750698672124,-490.0,0.00023815,2]
[367199421,1750698672134,-490.0,0.00023815,2]
[367199422,1750698672145,-490.0,0.00023815,2]
[367199423,1750698672160,-490.0,0.00023815,2]
[367199424,1750698672170,-667.69,0.00023815,2]
[367199425,1750698672181,-646.96,0.00023815,2]
[367199426,1750698672191,-587.11,0.00023815,2]
[367199427,1750698672201,-563.63,0.00023815,2]
[367199428,1750698672211,-639.66,0.00023815,2]
[367199429,1750698672221,-727.63,0.00023815,2]
[367199430,1750698672232,-688.37,0.00023815,2]
[367199431,1750698672242,-679.62,0.00023815,2]
[367199432,1750698672252,-1392.01,0.00023815,2]
[367199433,1750698672261,-1071.03,0.00023815,2]
[367199434,1750698672270,-655.34,0.00023815,2]
[367199435,1750698672281,-490.0,0.00023815,2]
[367199436,1750698672291,-490.0,0.00023815,2]
[367199437,1750698672301,-406.82,0.00023815,2]
[367199438,1750698672310,-490.0,0.00023815,2]
[367199439,1750698672319,-490.0,0.00023815,2]
[367199440,1750698672329,-608.99,0.00023815,2]
[367199441,1750698672344,-490.0,0.00023815,2]
[367199442,1750698672353,-1379.66,0.00023815,2]
[367199443,1750698672364,-611.24,0.00023815,2]
[367199444,1750698672375,-669.98,0.00023815,2]
[367199445,1750698672385,-651.34,0.00023815,2]
[367199446,1750698672394,-1147.78,0.00023815,2]
[367199447,1750698672404,-388.27061297,0.00023815,2]
[367199448,1750698672414,-490.0,0.00023815,2]
[367199449,1750698672424,-490.0,0.00023815,2]
[367199450,1750698672433,-848.13,0.00023815,2]
[367199451,1750698672443,-490.0,0.00023815,2]
[367199452,1750698672453,-490.11,0.00023815,2]
[367199453,1750698672463,-491.56,0.00023815,2]
[367199454,1750698672473,-490.0,0.00023815,2]
[367199455,1750698672482,-535.75,0.00023815,2]
[367199456,1750698672492,-710.24,0.00023815,2]
[367199457,1750698672502,-1005.59,0.00023815,2]
[367199458,1750698672512,-490.0,0.00023815,2]
[367199459,1750698672521,-1093.69,0.00023815,2]
[367199460,1750698672531,-490.0,0.00023815,2]
[367199461,1750698672541,-495.46,0.00023815,2]
[367199462,1750698672551,-1026.37,0.00023815,2]
[367199463,1750698672561,-1042.94,0.00023815,2]
[367199464,1750698672571,-490.0,0.00023815,2]
[367199465,1750698672581,-197.5368574,0.00023815,2]
[367199466,1750698672595,-680.85,0.00023815,2]
[367199467,1750698672605,-999.16,0.00023815,2]
[367199468,1750698672615,-667.22,0.00023815,2]
[367199469,1750698672625,-693.98,0.00023815,2]
[367199470,1750698672634,-1158.24,0.00023815,2]
[367199471,1750698672644,-490.0,0.00023815,2]
[367199472,1750698672655,-1114.67,0.00023815,2]
[367199473,1750698672665,-796.17,0.00023815,2]
[367199474,1750698672675,-490.0,0.00023815,2]
[367199475,1750698672686,-908.82,0.00023815,2]
[367199476,1750698672696,-588.97,0.00023815,2]
[367199477,1750698672706,-917.59,0.00023815,2]
[367199478,1750698672717,-821.03,0.00023815,2]
[367199479,1750698672727,-1290.1,0.00023815,2]
[367199480,1750698672737,-490.0,0.00023815,2]
[367199481,1750698672747,-490.0,0.00023815,2]
[367199482,1750698672757,-795.86,0.00023815,2]
[367199483,1750698672767,-577.68,0.00023815,2]
[367199484,1750698672777,-1286.37,0.00023815,2]
[367199485,1750698672787,-500.84500671,0.00023815,2]
[367199486,1750698672798,-891.33,0.00023815,2]
[367199487,1750698672808,-490.0,0.00023815,2]
[367199488,1750698672818,-490.0,0.00023815,2]
[367199489,1750698672829,-547.12,0.00023815,2]
[367199490,1750698672843,-915.13,0.00023815,2]
[367199491,1750698672853,-607.15,0.00023815,2]
[367199492,1750698672863,-490.0,0.00023815,2]
[367199493,1750698672873,-490.0,0.00023815,2]
[367199494,1750698672884,-519.94,0.00023815,2]
[367199495,1750698672896,-827.87,0.00023815,2]
[367199496,1750698672913,-490.0,0.00023815,2]
[367199497,1750698672923,-490.0,0.00023815,2]
[367199498,1750698672933,-490.0,0.00023815,2]
[367199499,1750698672943,-528.13,0.00023815,2]
[367199500,1750698672953,-735.18,0.00023815,2]
[367199501,1750698672963,-530.74364543,0.00023815,2]
[367199502,1750698672973,-490.0,0.00023815,2]
[367199503,1750698672984,-490.0,0.00023815,2]
[367199504,1750698672994,-503.9,0.00023815,2]
[367199505,1750698673004,-868.27,0.00023815,2]
[367199506,1750698673015,-577.29,0.00023815,2]
[367199507,1750698673026,-490.0,0.00023815,2]
[367199508,1750698673037,-490.0,0.00023815,2]
[367199509,1750698673048,-490.0,0.00023815,2]
[367199510,1750698673058,-532.41,0.00023815,2]
[367199511,1750698673068,-490.0,0.00023815,2]
[367199512,1750698673079,-713.81,0.00023815,2]
[367199513,1750698673096,-639.62,0.00023815,2]
[367199514,1750698673106,-453.499335,0.00023815,2]
[367199515,1750698673116,-490.0,0.00023815,2]
[367199516,1750698673127,-490.0,0.00023815,2]
[367199517,1750698673137,-490.0,0.00023815,2]
[367199518,1750698673147,-503.62,0.00023815,2]
[367199519,1750698673159,-1449.54,0.00023815,2]
[367199520,1750698673169,-490.0,0.00023815,2]
[367199521,1750698673179,-2103.74,0.00023815,2]
[367199522,1750698673188,-1502.01,0.00023815,2]
[367199523,1750698673198,-490.0,0.00023815,2]
[367199524,1750698673209,-490.0,0.00023815,2]
[367199525,1750698673219,-490.0,0.00023815,2]
[367199526,1750698673229,-1281.35,0.00023815,2]
[367199527,1750698673238,-490.0,0.00023815,2]
[367199528,1750698673250,-490.0,0.00023815,2]
[367199529,1750698673260,-1013.96,0.00023815,2]
[367199530,1750698673270,-978.16,0.00023815,2]
[367199531,1750698673281,-706.03,0.00023815,2]
[367199532,1750698673291,-490.0,0.00023815,2]
[367199533,1750698673302,-490.0,0.00023815,2]
[367199534,1750698673313,-490.0,0.00023815,2]
[367199535,1750698673323,-490.0,0.00023815,2]
[367199536,1750698673337,-490.0,0.00023815,2]
[367199537,1750698673347,-490.0,0.00023815,2]
[367199538,1750698673358,-851.97,0.00023815,2]
[367199539,1750698673368,-490.0,0.00023815,2]
[367199540,1750698673379,-490.0,0.00023815,2]
[367199541,1750698673389,-490.0,0.00023815,2]
[367199542,1750698673628,-490.0,0.00023815,2]
[367199543,1750698673638,-968.94,0.00023815,2]
[367199544,1750698673648,-490.0,0.00023815,2]
[367199545,1750698673657,-1305.56,0.00023815,2]
[367199546,1750698673667,-605.32,0.00023815,2]
[367199547,1750698673676,-1523.12,0.00023815,2]
[367199548,1750698673686,-496.3,0.00023815,2]
[367199549,1750698673695,-596.62,0.00023815,2]
[367199550,1750698673705,-490.0,0.00023815,2]
[367199551,1750698673715,-490.0,0.00023815,2]
[367199552,1750698673725,-490.0,0.00023815,2]
[367199553,1750698673735,-605.259572,0.00023815,2]
[367199554,1750698673744,-1231.23,0.00023815,2]
[367199555,1750698673754,-540.2023824,0.00023815,2]
[367199556,1750698673764,-640.93,0.00023815,2]
[367199557,1750698673774,-490.0,0.00023815,2]
[367199558,1750698673783,-1091.48,0.00023815,2]
[367199559,1750698673793,-490.0,0.00023815,2]
[367199560,1750698673803,-736.66,0.00023815,2]
[367199561,1750698673813,-1000.0,0.00023815,2]
[367199562,1750698673822,-490.0,0.00023815,2]
[367199563,1750698673832,-490.0,0.00023815,2]
[367199564,1750698673844,-1296.4,0.00023815,2]
[367199565,1750698673853,-490.0,0.00023815,2]
[367199566,1750698673863,-687.53,0.00023815,2]
[367199567,1750698673873,-577.42,0.00023815,2]
[367199568,1750698673882,-490.0,0.00023815,2]
[367199569,1750698673891,-994.99,0.00023815,2]
[367199570,1750698673901,-1465.11,0.00023815,2]
[367199571,1750698673910,-490.0,0.00023815,2]
[367199572,1750698673919,-659.98,0.00023815,2]
[367199573,1750698673929,-1163.27,0.00023815,2]
[367199574,1750698673938,-1296.64,0.00023815,2]
[367199575,1750698673948,-490.0,0.00023815,2]
[367199576,1750698673957,-805.19,0.00023815,2]
[367199577,1750698673967,-490.0,0.00023815,2]
[367199578,1750698673976,-798.6,0.00023815,2]
[367199579,1750698673985,-961.74,0.00023815,2]
[367199580,1750698673994,-490.0,0.00023815,2]
[367199581,1750698674005,-490.0,0.00023815,2]
[367199582,1750698674015,-586.53,0.00023815,2]
[367199583,1750698674024,-711.71,0.00023815,2]
[367199584,1750698674034,-490.0,0.00023815,2]
[367199585,1750698674043,-490.0,0.00023815,2]
[367199586,1750698674053,-1316.01,0.00023815,2]
[367199587,1750698674062,-2071.77,0.00023815,2]
[367199588,1750698674072,-530.79520872,0.00023815,2]
[367199589,1750698674088,-490.0,0.00023815,2]
[367199590,1750698674098,-707.92,0.00023815,2]
[367199591,1750698674107,-490.0,0.00023815,2]
[367199592,1750698674117,-988.12,0.00023815,2]
[367199593,1750698674126,-1316.04,0.00023815,2]
[367199594,1750698674136,-490.0,0.00023815,2]
[367199595,1750698674147,-490.0,0.00023815,2]
[367199596,1750698674156,-1649.14,0.00023815,2]
[367199597,1750698674167,-490.0,0.00023815,2]
[367199598,1750698674178,-490.0,0.00023815,2]
[367199599,1750698674188,-943.07,0.00023815,2]
[367199600,1750698674198,-1451.84,0.00023815,2]
[367199601,1750698674207,-2574.3,0.00023815,2]
[367199602,1750698674217,-677.43,0.00023815,2]
[367199603,1750698674226,-1302.67,0.00023815,2]
[367199604,1750698674236,-761.66,0.00023815,2]
[367199605,1750698674245,-671.45,0.00023815,2]
[367199606,1750698674255,-1201.92,0.00023815,2]
[367199607,1750698674265,-490.0,0.00023815,2]
[367199608,1750698674274,-490.0,0.00023815,2]
[367199609,1750698674284,-490.0,0.00023815,2]
[367199610,1750698674293,-490.0,0.00023815,2]
[367199611,1750698674303,-1463.6,0.00023815,2]
[367199612,1750698674312,-1384.87,0.00023815,2]
[367199613,1750698674321,-1565.89,0.00023815,2]
[367199614,1750698674331,-740.56,0.00023815,2]
[367199615,1750698674343,-490.0,0.00023815,2]
[367199616,1750698674352,-581.5,0.00023815,2]
[367199617,1750698674361,-1274.36,0.00023815,2]
[367199618,1750698674370,-3207.81,0.00023815,2]
[367199619,1750698674379,-490.0,0.00023815,2]
[367199620,1750698674389,-1136.75,0.00023815,2]
[367199621,1750698674398,-490.0,0.00023815,2]
[367199622,1750698674408,-508.28,0.00023815,2]
[367199623,1750698674417,-490.0,0.00023815,2]
[367199624,1750698674426,-1015.78,0.00023815,2]
[367199625,1750698674436,-645.34,0.00023815,2]
[367199626,1750698674445,-1082.91,0.00023815,2]
[367199627,1750698674455,-570.24,0.00023815,2]
[367199628,1750698674465,-3216.41,0.00023815,2]
[367199629,1750698674475,-1198.83,0.00023815,2]
[367199630,1750698674484,-777.62,0.00023815,2]
[367199631,1750698674496,-3260.51,0.00023815,2]
[367199632,1750698674505,-642.42,0.00023815,2]
[367199633,1750698674515,-1064.93,0.00023815,2]
[367199634,1750698674525,-2313.09,0.00023815,2]
[367199635,1750698674534,-690.62,0.00023815,2]
[367199636,1750698674544,-490.0,0.00023815,2]
[367199637,1750698674553,-490.0,0.00023815,2]
[367199638,1750698674563,-1610.22,0.00023815,2]
[367199639,1750698674573,-3410.48,0.00023815,2]
[367199640,1750698674585,-490.0,0.00023815,2]
[367199641,1750698674595,-490.0,0.00023815,2]
[367199642,1750698674605,-1189.88,0.00023815,2]
[367199643,1750698674615,-503.76,0.00023815,2]
[367199644,1750698674625,-1272.73,0.00023815,2]
[367199645,1750698674635,-1292.27,0.00023815,2]
[367199646,1750698674644,-1305.05,0.00023815,2]
[367199647,1750698674654,-490.0,0.00023815,2]
[367199648,1750698674663,-5009.26,0.00023815,2]
[367199649,1750698674673,-802.99,0.00023815,2]
[367199650,1750698674682,-1417.36,0.00023815,2]
[367199651,1750698674692,-534.32,0.00023815,2]
[367199652,1750698674701,-1871.08,0.00023815,2]
[367199653,1750698674711,-490.0,0.00023815,2]
[367199654,1750698674720,-490.0,0.00023815,2]
[367199655,1750698674730,-1102.28,0.00023815,2]
[367199656,1750698674740,-978.05,0.00023815,2]
[367199657,1750698674750,-1290.08,0.00023815,2]
[367199658,1750698674759,-490.0,0.00023815,2]
[367199659,1750698674769,-757.53,0.00023815,2]
[367199660,1750698674779,-490.0,0.00023815,2]
[367199661,1750698674789,-490.0,0.00023815,2]
[367199662,1750698674799,-6273.63,0.00023815,2]
[367199663,1750698674808,-490.0,0.00023815,2]
[367199664,1750698674818,-2190.49,0.00023815,2]
[367199665,1750698674827,-693.85,0.00023815,2]
[367199666,1750698674839,-969.95,0.00023815,2]
[367199667,1750698674849,-844.27,0.00023815,2]
[367199668,1750698674858,-490.0,0.00023815,2]
[367199669,1750698674868,-1768.01,0.00023815,2]
[367199670,1750698674877,-490.0,0.00023815,2]
[367199671,1750698674887,-1033.79,0.00023815,2]
[367199672,1750698674897,-490.0,0.00023815,2]
[367199673,1750698674907,-2829.12,0.00023815,2]
[367199674,1750698674917,-490.0,0.00023815,2]
[367199675,1750698674927,-1421.12,0.00023815,2]
[367199676,1750698674937,-3039.87,0.00023815,2]
[367199677,1750698674947,-490.0,0.00023815,2]
[367199678,1750698674957,-300.0,0.00023815,2]
[367199679,1750698674967,-615.69,0.00023816,2]
[367199680,1750698674976,-490.0,0.00023816,2]
[367199681,1750698674986,-490.0,0.00023816,2]
[367199682,1750698674996,-490.0,0.00023816,2]
[367199683,1750698675005,-799.05,0.00023816,2]
[367199684,1750698675014,-490.0,0.00023816,2]
[367199685,1750698675024,-649.48,0.00023816,2]
[367199686,1750698675034,-490.0,0.00023816,2]
[367199687,1750698675044,-747.22,0.00023816,2]
[367199688,1750698675053,-213.81886462,0.00023816,2]
[367199689,1750698675063,-582.61,0.00023816,2]
[367199690,1750698675074,-582.61,0.00023816,2]
[367199691,1750698675092,-571.21,0.00023816,2]
[367199692,1750698675102,-490.0,0.00023816,2]
[367199693,1750698675111,-490.0,0.00023816,2]
[367199694,1750698675122,-1515.67,0.00023816,2]
[367199695,1750698675132,-1565.82,0.00023816,2]
[367199696,1750698675142,-2422.44,0.00023816,2]
[367199697,1750698675151,-1311.67,0.00023816,2]
[367199698,1750698675161,-1787.29,0.00023816,2]
[367199699,1750698675171,-490.0,0.00023816,2]
[367199700,1750698675181,-2072.67,0.00023816,2]
[367199701,1750698675190,-490.0,0.00023816,2]
[367199702,1750698675199,-490.0,0.00023816,2]
[367199703,1750698675209,-821.3,0.00023816,2]
[367199704,1750698675219,-1673.72,0.00023816,2]
[367199705,1750698675228,-2237.1,0.00023816,2]
[367199706,1750698675238,-1610.12,0.00023816,2]
[367199707,1750698675249,-1083.0,0.00023816,2]
[367199708,1750698675258,-1106.33,0.00023816,2]
[367199709,1750698675268,-490.0,0.00023816,2]
[367199710,1750698675277,-490.0,0.00023816,2]
[367199711,1750698675287,-490.0,0.00023816,2]
[367199712,1750698675296,-2050.62,0.00023816,2]
[367199713,1750698675305,-1208.82,0.00023816,2]
[367199714,1750698675314,-498.0,0.00023816,2]
[367199715,1750698675324,-1726.23,0.00023816,2]
[367199716,1750698675335,-719.16,0.00023816,2]
[367199717,1750698675345,-490.0,0.00023816,2]
[367199718,1750698675354,-1608.26,0.00023816,2]
[367199719,1750698675363,-1628.29,0.00023816,2]
[367199720,1750698675373,-1088.21,0.00023816,2]
[367199721,1750698675382,-490.0,0.00023816,2]
[367199722,1750698675391,-1428.05,0.00023816,2]
[367199723,1750698675401,-548.65,0.00023816,2]
[367199724,1750698675410,-1785.44,0.00023816,2]
[367199725,1750698675419,-608.03,0.00023816,2]
[367199726,1750698675429,-1037.72,0.00023816,2]
[367199727,1750698675438,-490.0,0.00023816,2]
[367199728,1750698675447,-490.0,0.00023816,2]
[367199729,1750698675457,-938.56,0.00023816,2]
[367199730,1750698675466,-490.0,0.00023816,2]
[367199731,1750698675475,-490.0,0.00023816,2]
[367199732,1750698675485,-490.0,0.00023816,2]
[367199733,1750698675494,-490.0,0.00023816,2]
[367199734,1750698675503,-1599.2,0.00023816,2]
[367199735,1750698675513,-2233.74,0.00023816,2]
[367199736,1750698675522,-779.66,0.00023816,2]
[367199737,1750698675531,-2071.71,0.00023816,2]
[367199738,1750698675541,-2448.89,0.00023816,2]
[367199739,1750698675550,-1609.83,0.00023816,2]
[367199740,1750698675560,-771.85,0.00023816,2]
[367199741,1750698675570,-17894.27,0.00023816,2]
[367199742,1750698675579,-490.0,0.00023816,2]
[367199743,1750698675591,-2144.67,0.00023816,2]
[367199744,1750698675601,-1031.7,0.00023816,2]
[367199745,1750698675610,-490.0,0.00023816,2]
[367199746,1750698675620,-1643.47,0.00023816,2]
[367199747,1750698675630,-1164.0,0.00023816,2]
[367199748,1750698675639,-3265.53,0.00023816,2]
[367199749,1750698675649,-1649.42,0.00023816,2]
[367199750,1750698675658,-2939.17,0.00023816,2]
[367199751,1750698675668,-6326.13,0.00023816,2]
[367199752,1750698675678,-2564.45,0.00023816,2]
[367199753,1750698675688,-2032.0,0.00023816,2]
[367199754,1750698675697,-7426.18,0.00023816,2]
[367199755,1750698675706,-1353.02,0.00023816,2]
[367199756,1750698675716,-6426.78,0.00023816,2]
[367199757,1750698675725,-732.12,0.00023816,2]
[367199758,1750698675735,-1188.46,0.00023816,2]
[367199759,1750698675745,-3016.63,0.00023816,2]
[367199760,1750698675754,-671.94,0.00023816,2]
[367199761,1750698675764,-1261.71,0.00023816,2]
[367199762,1750698675773,-8384.06,0.00023816,2]
[367199763,1750698675783,-2734.07,0.00023816,2]
[367199764,1750698675792,-1338.84,0.00023816,2]
[367199765,1750698675802,-785.94,0.00023816,2]
[367199766,1750698675811,-503.82,0.00023816,2]
[367199767,1750698675821,-2908.2,0.00023816,2]
[367199768,1750698675830,-490.0,0.00023816,2]